Workbook

Sheet Rangliste
A1: Name | B1: Vorname | C1: Pass-Nr. | D1: Team | E1: Klasse | F1: Gesamt | G1: Spiele | H1: ø | I1: Pins | J1: Pins | K1: Pins | L1: Pins | M1: Pins | N1: Pins | O1: Pins | P1: Pins | Q1: Pins | R1: Pins | S1: Pins | T1: Pins | U1: Pins | V1: Pins | W1: Pins | X1: Pins | Y1: Pins | Z1: Pins | AA1: Pins | AB1: Pins | AC1: Pins | AD1: Pins | AE1: Pins | AF1: Pins | AG1: Pins | AH1: Pins | AI1: Pins | AJ1: Pins | AK1: Pins | AL1: Pins | AM1: Pins | AN1: Pins | AO1: Pins | AP1: Pins | AQ1: Pins | AR1: Pins | AS1: Pins | AT1: Pins | AU1: Pins | AV1: Pins | AW1: Pins | AX1: Pins | AY1: Pins | AZ1: Pins | BA1: Pins | BB1: Pins | BC1: Pins | BD1: Pins | BE1: Pins | BF1: Pins | BG1: Pins | BH1: Pins | BI1: Pins | BJ1: Pins | BK1: Pins | BL1: Pins | BM1: Pins | BN1: Pins | BO1: Pins | BP1: Pins | BQ1: Pins | BR1: Pins | BS1: Pins | BT1: Pins | BU1: Pins | BV1: Pins | BW1: Pins | BX1: Pins | BY1: Pins | BZ1: Pins | CA1: Pins | CB1: Pins | CC1: Pins | CD1: Pins | CE1: Pins | CF1: Pins | CG1: Pins | CH1: Pins | CI1: Pins | CJ1: Pins | CK1: Pins | CL1: Pins | CM1: Pins | CN1: Pins | CO1: Pins | CP1: Pins | CQ1: Pins | CR1: Pins | CS1: Pins | CT1: Pins | CU1: Pins | CV1: Pins | CW1: Pins | CX1: Pins | CY1: Pins | CZ1: Pins | DA1: Pins | DB1: Pins | DC1: Pins | DD1: Pins | DE1: Pins | DF1: Pins | DG1: Pins | DH1: Pins | DI1: Pins | DJ1: Pins | DK1: Pins | DL1: Pins | DM1: =COUNTA(A:A)+1 -> 56 | DN1: HL | DO1: G | DP1: =COUNTA(A:A) -> 55
A2: Harzer | B2: Christopher | C2: 030/16 | D2: Gassenhauer | E2: HL | F2: =ROUND(SUM(I2:CU2),0) -> 10,064 | G2: =COUNTA(I2:CU2) -> 54 | H2: =ROUND(AVERAGE(I2:CU2),3) -> 186.37 | I2: 198 | J2: 158 | K2: 184 | L2: 206 | M2: 201 | N2: 220 | O2: 224 | P2: 200 | Q2: 182 | R2: 170 | S2: 176 | T2: 164 | U2: 211 | V2: 156 | W2: 167 | X2: 216 | Y2: 199 | Z2: 215 | AA2: 180 | AB2: 172 | AC2: 188 | AD2: 211 | AE2: 155 | AF2: 215 | AG2: 212 | AH2: 158 | AI2: 160 | AJ2: 186 | AK2: 139 | AL2: 187 | AM2: 146 | AN2: 165 | AO2: 159 | AP2: 161 | AQ2: 210 | AR2: 201 | AS2: 152 | AT2: 170 | AU2: 193 | AV2: 179 | AW2: 167 | AX2: 144 | AY2: 267 | AZ2: 194 | BA2: 231 | BB2: 204 | BC2: 202 | BD2: 204 | BE2: 214 | BF2: 190 | BG2: 229 | BH2: 171 | BI2: 167 | BJ2: 134 | DM2: =COUNTA(I2:DL2)+9 -> 63 | DO2: M
A3: Brookes-Kiefer | B3: Elaine | C3: 028/08 | D3: Gassenhauer | E3: HL | F3: =ROUND(SUM(I3:CU3),0) -> 10,951 | G3: 65 | H3: 168.48 | I3: 147 | J3: 202 | K3: 203 | L3: 200 | M3: 126 | N3: 172 | O3: 173 | P3: 189 | Q3: 138 | R3: 180 | S3: 154 | T3: 191 | U3: 160 | V3: 129 | W3: 182 | X3: 214 | Y3: 136 | Z3: 174 | AA3: 178 | AB3: 185 | AC3: 158 | AD3: 166 | AE3: 165 | AF3: 155 | AG3: 148 | AH3: 154 | AI3: 141 | AJ3: 126 | AK3: 146 | AL3: 188 | AM3: 169 | AN3: 184 | AO3: 222 | AP3: 144 | AQ3: 162 | AR3: 211 | AS3: 153 | AT3: 158 | AU3: 215 | AV3: 142 | AW3: 161 | AX3: 212 | AY3: 126 | AZ3: 185 | BA3: 133 | BB3: 174 | BC3: 189 | BD3: 182 | BE3: 165 | BF3: 168 | BG3: 206 | BH3: 135 | BI3: 183 | BJ3: 170 | BK3: 182 | BL3: 140 | BM3: 171 | BN3: 148 | BO3: 171 | BP3: 155 | BQ3: 172 | BR3: 211 | BS3: 145 | BT3: 161 | BU3: 166 | DM3: 74 | DO3: W
A4: Lella | B4: Michele | C4: 059/14 | D4: Gassenhauer | E4: HL | F4: 6,273 | G4: 36 | H4: 174.25 | I4: 183 | J4: 182 | K4: 171 | L4: 110 | M4: 182 | N4: 186 | O4: 175 | P4: 190 | Q4: 126 | R4: 126 | S4: 206 | T4: 114 | U4: 161 | V4: 190 | W4: 191 | X4: 197 | Y4: 151 | Z4: 219 | AA4: 208 | AB4: 179 | AC4: 181 | AD4: 144 | AE4: 210 | AF4: 154 | AG4: 214 | AH4: 160 | AI4: 157 | AJ4: 134 | AK4: 150 | AL4: 135 | AM4: 189 | AN4: 172 | AO4: 189 | AP4: 245 | AQ4: 209 | AR4: 183 | DM4: 45 | DO4: M
A5: Kiefer | B5: Michael | C5: 029/08 | D5: Gassenhauer | E5: HL | F5: 15,369 | G5: =COUNTA(I5:CU5) -> 83 | H5: =ROUND(AVERAGE(I5:CU5),3) -> 185.17 | I5: 161 | J5: 159 | K5: 207 | L5: 167 | M5: 178 | N5: 163 | O5: 227 | P5: 161 | Q5: 250 | R5: 193 | S5: 211 | T5: 194 | U5: 189 | V5: 193 | W5: 151 | X5: 224 | Y5: 221 | Z5: 176 | AA5: 213 | AB5: 187 | AC5: 181 | AD5: 183 | AE5: 188 | AF5: 200 | AG5: 158 | AH5: 178 | AI5: 154 | AJ5: 193 | AK5: 164 | AL5: 165 | AM5: 214 | AN5: 172 | AO5: 189 | AP5: 182 | AQ5: 162 | AR5: 192 | AS5: 206 | AT5: 188 | AU5: 188 | AV5: 178 | AW5: 174 | AX5: 201 | AY5: 172 | AZ5: 189 | BA5: 162 | BB5: 196 | BC5: 171 | BD5: 178 | BE5: 232 | BF5: 180 | BG5: 208 | BH5: 181 | BI5: 179 | BJ5: 177 | BK5: 192 | BL5: 191 | BM5: 201 | BN5: 140 | BO5: 158 | BP5: 154 | BQ5: 152 | BR5: 160 | BS5: 201 | BT5: 185 | BU5: 146 | BV5: 175 | BW5: 186 | BX5: 161 | BY5: 264 | BZ5: 197 | CA5: 180 | CB5: 171 | CC5: 192 | CD5: 158 | CE5: 221 | CF5: 201 | CG5: 182 | CH5: 200 | CI5: 237 | CJ5: 167 | CK5: 195 | CL5: 153 | CM5: 189 | DM5: 92 | DO5: M
A6: Vorwerg | B6: Michael | C6: 083/14 | D6: Gassenhauer | E6: HL | F6: =ROUND(SUM(I6:CU6),0) -> 10,551 | G6: 60 | H6: 175.85 | I6: 186 | J6: 167 | K6: 233 | L6: 145 | M6: 163 | N6: 191 | O6: 167 | P6: 194 | Q6: 145 | R6: 149 | S6: 154 | T6: 231 | U6: 183 | V6: 149 | W6: 152 | X6: 157 | Y6: 191 | Z6: 203 | AA6: 149 | AB6: 147 | AC6: 171 | AD6: 159 | AE6: 200 | AF6: 195 | AG6: 160 | AH6: 190 | AI6: 161 | AJ6: 194 | AK6: 155 | AL6: 232 | AM6: 204 | AN6: 181 | AO6: 248 | AP6: 180 | AQ6: 173 | AR6: 212 | AS6: 193 | AT6: 141 | AU6: 174 | AV6: 182 | AW6: 170 | AX6: 208 | AY6: 163 | AZ6: 167 | BA6: 172 | BB6: 157 | BC6: 178 | BD6: 152 | BE6: 144 | BF6: 178 | BG6: 157 | BH6: 178 | BI6: 177 | BJ6: 176 | BK6: 142 | BL6: 205 | BM6: 212 | BN6: 152 | BO6: 167 | BP6: 135 | DM6: 69 | DO6: M
A7: Scharnowski | B7: Waldemar | C7: 127/94 | D7: Wellenmacher 1 | E7: HL | F7: 8,812 | G7: 45 | H7: 195.82 | I7: 161 | J7: 300 | K7: 155 | L7: 232 | M7: 159 | N7: 155 | O7: 166 | P7: 182 | Q7: 183 | R7: 164 | S7: 201 | T7: 266 | U7: 213 | V7: 195 | W7: 214 | X7: 215 | Y7: 173 | Z7: 206 | AA7: 245 | AB7: 202 | AC7: 239 | AD7: 139 | AE7: 211 | AF7: 192 | AG7: 146 | AH7: 210 | AI7: 192 | AJ7: 169 | AK7: 236 | AL7: 179 | AM7: 216 | AN7: 234 | AO7: 212 | AP7: 203 | AQ7: 167 | AR7: 204 | AS7: 191 | AT7: 199 | AU7: 183 | AV7: 223 | AW7: 224 | AX7: 172 | AY7: 167 | AZ7: 147 | BA7: 170 | DM7: 54 | DO7: M
A8: Koths | B8: Katrin | C8: 105/16 | D8: Wellenmacher 1 | E8: HL | F8: 7,855 | G8: 47 | H8: 167.13 | I8: 169 | J8: 148 | K8: 170 | L8: 182 | M8: 145 | N8: 142 | O8: 177 | P8: 169 | Q8: 159 | R8: 220 | S8: 169 | T8: 182 | U8: 178 | V8: 145 | W8: 184 | X8: 162 | Y8: 207 | Z8: 195 | AA8: 146 | AB8: 116 | AC8: 152 | AD8: 173 | AE8: 148 | AF8: 187 | AG8: 189 | AH8: 156 | AI8: 157 | AJ8: 144 | AK8: 203 | AL8: 125 | AM8: 200 | AN8: 167 | AO8: 166 | AP8: 143 | AQ8: 141 | AR8: 242 | AS8: 177 | AT8: 156 | AU8: 145 | AV8: 203 | AW8: 158 | AX8: 152 | AY8: 138 | AZ8: 136 | BA8: 189 | BB8: 142 | BC8: 201 | DM8: 56 | DO8: W
A9: Gehrmann | B9: René | C9: 063/14 | D9: Wellenmacher 1 | E9: HL | F9: 12,386 | G9: 62 | H9: 199.77 | I9: 194 | J9: 148 | K9: 214 | L9: 203 | M9: 181 | N9: 204 | O9: 224 | P9: 247 | Q9: 219 | R9: 235 | S9: 227 | T9: 214 | U9: 212 | V9: 269 | W9: 175 | X9: 173 | Y9: 192 | Z9: 193 | AA9: 217 | AB9: 228 | AC9: 231 | AD9: 190 | AE9: 182 | AF9: 200 | AG9: 195 | AH9: 162 | AI9: 203 | AJ9: 191 | AK9: 191 | AL9: 263 | AM9: 183 | AN9: 145 | AO9: 225 | AP9: 216 | AQ9: 161 | AR9: 151 | AS9: 232 | AT9: 190 | AU9: 182 | AV9: 165 | AW9: 183 | AX9: 208 | AY9: 161 | AZ9: 245 | BA9: 214 | BB9: 203 | BC9: 207 | BD9: 181 | BE9: 195 | BF9: 162 | BG9: 150 | BH9: 246 | BI9: 185 | BJ9: 224 | BK9: 201 | BL9: 203 | BM9: 236 | BN9: 248 | BO9: 195 | BP9: 157 | BQ9: 187 | BR9: 168 | DM9: 71 | DO9: M
A10: Fabian | B10: Ingo | C10: 064/14 | D10: Wellenmacher 1 | E10: HL | F10: =ROUND(SUM(I10:CU10),0) -> 1,925 | G10: 12 | H10: 160.42 | I10: 138 | J10: 149 | K10: 175 | L10: 203 | M10: 180 | N10: 171 | O10: 161 | P10: 137 | Q10: 135 | R10: 161 | S10: 173 | T10: 142 | DM10: 21 | DO10: M
A11: Brückner | B11: Sylvia | C11: 102/23 | D11: MM Bau 1 | E11: HL | F11: 5,805 | G11: 36 | H11: 161.25 | I11: 169 | J11: 170 | K11: 148 | L11: 150 | M11: 190 | N11: 142 | O11: 139 | P11: 175 | Q11: 180 | R11: 166 | S11: 140 | T11: 190 | U11: 158 | V11: 136 | W11: 168 | X11: 188 | Y11: 181 | Z11: 157 | AA11: 198 | AB11: 163 | AC11: 160 | AD11: 114 | AE11: 169 | AF11: 159 | AG11: 156 | AH11: 143 | AI11: 147 | AJ11: 194 | AK11: 152 | AL11: 125 | AM11: 156 | AN11: 179 | AO11: 168 | AP11: 140 | AQ11: 144 | AR11: 191 | DM11: 45 | DO11: W
A12: Vogel | B12: Bernd | C12: 122/12 | D12: MM Bau 1 | E12: HL | F12: 7,659 | G12: 45 | H12: 170.20 | I12: 174 | J12: 180 | K12: 159 | L12: 146 | M12: 186 | N12: 171 | O12: 223 | P12: 191 | Q12: 177 | R12: 105 | S12: 139 | T12: 178 | U12: 153 | V12: 156 | W12: 179 | X12: 159 | Y12: 186 | Z12: 172 | AA12: 234 | AB12: 178 | AC12: 161 | AD12: 211 | AE12: 121 | AF12: 170 | AG12: 154 | AH12: 201 | AI12: 140 | AJ12: 193 | AK12: 163 | AL12: 159 | AM12: 183 | AN12: 183 | AO12: 167 | AP12: 159 | AQ12: 169 | AR12: 159 | AS12: 179 | AT12: 140 | AU12: 184 | AV12: 192 | AW12: 173 | AX12: 159 | AY12: 163 | AZ12: 168 | BA12: 162 | DM12: 54 | DO12: M
A13: Haase | B13: Reiner | C13: 104/15 | D13: MM Bau 1 | E13: HL | F13: 10,277 | G13: =COUNTA(I13:CU13) -> 54 | H13: =ROUND(AVERAGE(I13:CU13),3) -> 190.32 | I13: 194 | J13: 200 | K13: 215 | L13: 204 | M13: 256 | N13: 223 | O13: 194 | P13: 170 | Q13: 150 | R13: 239 | S13: 202 | T13: 202 | U13: 181 | V13: 201 | W13: 215 | X13: 190 | Y13: 163 | Z13: 196 | AA13: 211 | AB13: 180 | AC13: 169 | AD13: 225 | AE13: 153 | AF13: 156 | AG13: 248 | AH13: 215 | AI13: 226 | AJ13: 168 | AK13: 152 | AL13: 126 | AM13: 192 | AN13: 189 | AO13: 168 | AP13: 170 | AQ13: 232 | AR13: 171 | AS13: 183 | AT13: 236 | AU13: 179 | AV13: 160 | AW13: 236 | AX13: 165 | AY13: 182 | AZ13: 210 | BA13: 162 | BB13: 153 | BC13: 125 | BD13: 210 | BE13: 182 | BF13: 168 | BG13: 144 | BH13: 201 | BI13: 225 | BJ13: 210 | DM13: 63 | DO13: M
A14: Malow | B14: Marco | C14: 101/15 | D14: MM Bau 1 | E14: HL | F14: 16,311 | G14: 83 | H14: 196.52 | I14: 189 | J14: 204 | K14: 199 | L14: 172 | M14: 142 | N14: 192 | O14: 235 | P14: 205 | Q14: 244 | R14: 199 | S14: 227 | T14: 169 | U14: 211 | V14: 159 | W14: 212 | X14: 214 | Y14: 215 | Z14: 208 | AA14: 192 | AB14: 179 | AC14: 158 | AD14: 215 | AE14: 197 | AF14: 183 | AG14: 202 | AH14: 178 | AI14: 182 | AJ14: 168 | AK14: 226 | AL14: 215 | AM14: 220 | AN14: 171 | AO14: 149 | AP14: 215 | AQ14: 198 | AR14: 203 | AS14: 223 | AT14: 233 | AU14: 202 | AV14: 180 | AW14: 247 | AX14: 205 | AY14: 173 | AZ14: 160 | BA14: 203 | BB14: 215 | BC14: 196 | BD14: 217 | BE14: 203 | BF14: 171 | BG14: 266 | BH14: 155 | BI14: 150 | BJ14: 151 | BK14: 181 | BL14: 224 | BM14: 195 | BN14: 237 | BO14: 242 | BP14: 189 | BQ14: 204 | BR14: 195 | BS14: 213 | BT14: 192 | BU14: 215 | BV14: 225 | BW14: 236 | BX14: 233 | BY14: 230 | BZ14: 193 | CA14: 192 | CB14: 145 | CC14: 126 | CD14: 222 | CE14: 225 | CF14: 155 | CG14: 160 | CH14: 198 | CI14: 193 | CJ14: 137 | CK14: 222 | CL14: 181 | CM14: 154 | DM14: 92 | DO14: M
A15: Brötz | B15: Heinz | C15: 090/22 | D15: MM Bau 1 | E15: HL | F15: =ROUND(SUM(I15:CU15),0) -> 945 | G15: =COUNTA(I15:CU15) -> 6 | H15: =ROUND(AVERAGE(I15:CU15),3) -> 157.50 | I15: 147 | J15: 151 | K15: 191 | L15: 123 | M15: 163 | N15: 170 | DM15: 15 | DO15: M
A16: Lipke | B16: Roswitha | C16: 118/11 | D16: Wellenmacher 2 | E16: HL | F16: 6,482 | G16: 44 | H16: 147.32 | I16: 153 | J16: 134 | K16: 104 | L16: 160 | M16: 159 | N16: 107 | O16: 133 | P16: 170 | Q16: 116 | R16: 166 | S16: 138 | T16: 155 | U16: 159 | V16: 167 | W16: 174 | X16: 129 | Y16: 147 | Z16: 114 | AA16: 170 | AB16: 152 | AC16: 191 | AD16: 145 | AE16: 159 | AF16: 139 | AG16: 157 | AH16: 131 | AI16: 167 | AJ16: 154 | AK16: 138 | AL16: 151 | AM16: 152 | AN16: 146 | AO16: 149 | AP16: 196 | AQ16: 171 | AR16: 123 | AS16: 113 | AT16: 122 | AU16: 123 | AV16: 164 | AW16: 123 | AX16: 138 | AY16: 197 | AZ16: 126 | DM16: 53 | DO16: W
A17: Roth | B17: Horst | C17: 092/17 | D17: Wellenmacher 2 | E17: HL | F17: 7,920 | G17: 50 | H17: 158.40 | I17: 204 | J17: 176 | K17: 145 | L17: 116 | M17: 164 | N17: 152 | O17: 156 | P17: 183 | Q17: 137 | R17: 213 | S17: 149 | T17: 197 | U17: 158 | V17: 152 | W17: 164 | X17: 153 | Y17: 156 | Z17: 145 | AA17: 143 | AB17: 147 | AC17: 168 | AD17: 151 | AE17: 136 | AF17: 164 | AG17: 183 | AH17: 159 | AI17: 139 | AJ17: 206 | AK17: 169 | AL17: 155 | AM17: 159 | AN17: 175 | AO17: 135 | AP17: 140 | AQ17: 163 | AR17: 192 | AS17: 139 | AT17: 187 | AU17: 134 | AV17: 111 | AW17: 146 | AX17: 179 | AY17: 145 | AZ17: 182 | BA17: 150 | BB17: 146 | BC17: 198 | BD17: 124 | BE17: 145 | BF17: 130 | DM17: 59 | DO17: M
A18: Kraus | B18: Reiner | C18: 070/18 | D18: Wellenmacher 2 | E18: HL | F18: 5,889 | G18: 36 | H18: 163.58 | I18: 164 | J18: 143 | K18: 140 | L18: 137 | M18: 157 | N18: 148 | O18: 125 | P18: 177 | Q18: 126 | R18: 126 | S18: 164 | T18: 158 | U18: 114 | V18: 165 | W18: 166 | X18: 167 | Y18: 223 | Z18: 140 | AA18: 150 | AB18: 168 | AC18: 194 | AD18: 174 | AE18: 167 | AF18: 181 | AG18: 196 | AH18: 134 | AI18: 170 | AJ18: 157 | AK18: 170 | AL18: 203 | AM18: 168 | AN18: 160 | AO18: 188 | AP18: 192 | AQ18: 197 | AR18: 180 | DM18: 45 | DO18: M
A19: Prasch | B19: Daniel | C19: 069/18 | D19: Wellenmacher 2 | E19: HL | F19: 5,740 | G19: 33 | H19: 173.94 | I19: 165 | J19: 191 | K19: 150 | L19: 175 | M19: 181 | N19: 213 | O19: 165 | P19: 198 | Q19: 179 | R19: 196 | S19: 194 | T19: 192 | U19: 221 | V19: 168 | W19: 203 | X19: 136 | Y19: 144 | Z19: 153 | AA19: 135 | AB19: 191 | AC19: 111 | AD19: 180 | AE19: 171 | AF19: 210 | AG19: 168 | AH19: 212 | AI19: 187 | AJ19: 184 | AK19: 145 | AL19: 198 | AM19: 178 | AN19: 162 | AO19: 84 | DM19: 42 | DO19: M
A20: Kornett | B20: Kerstin | C20: 106/16 | D20: Wellenmacher 2 | E20: HL | F20: =ROUND(SUM(I20:CU20),0) -> 13,209 | G20: =COUNTA(I20:CU20) -> 74 | H20: =ROUND(AVERAGE(I20:CU20),3) -> 178.50 | I20: 179 | J20: 215 | K20: 179 | L20: 146 | M20: 216 | N20: 208 | O20: 178 | P20: 196 | Q20: 145 | R20: 199 | S20: 188 | T20: 179 | U20: 196 | V20: 187 | W20: 191 | X20: 156 | Y20: 190 | Z20: 225 | AA20: 188 | AB20: 168 | AC20: 183 | AD20: 189 | AE20: 158 | AF20: 178 | AG20: 236 | AH20: 236 | AI20: 215 | AJ20: 190 | AK20: 151 | AL20: 214 | AM20: 173 | AN20: 227 | AO20: 193 | AP20: 135 | AQ20: 163 | AR20: 197 | AS20: 201 | AT20: 175 | AU20: 155 | AV20: 152 | AW20: 183 | AX20: 167 | AY20: 202 | AZ20: 191 | BA20: 179 | BB20: 190 | BC20: 156 | BD20: 167 | BE20: 170 | BF20: 147 | BG20: 186 | BH20: 162 | BI20: 164 | BJ20: 196 | BK20: 174 | BL20: 162 | BM20: 174 | BN20: 158 | BO20: 155 | BP20: 147 | BQ20: 172 | BR20: 178 | BS20: 205 | BT20: 154 | BU20: 181 | BV20: 169 | BW20: 181 | BX20: 163 | BY20: 165 | BZ20: 156 | CA20: 140 | CB20: 116 | CC20: 161 | CD20: 188 | DM20: 83 | DO20: W
A21: Radke | B21: Willy | C21: 120/17 | D21: Stadt Offenbach | E21: HL | F21: 4,748 | G21: 30 | H21: 158.27 | I21: 164 | J21: 143 | K21: 142 | L21: 125 | M21: 180 | N21: 151 | O21: 142 | P21: 142 | Q21: 161 | R21: 151 | S21: 139 | T21: 183 | U21: 131 | V21: 168 | W21: 142 | X21: 125 | Y21: 156 | Z21: 178 | AA21: 147 | AB21: 171 | AC21: 220 | AD21: 170 | AE21: 214 | AF21: 165 | AG21: 150 | AH21: 128 | AI21: 147 | AJ21: 161 | AK21: 193 | AL21: 159 | DM21: 39 | DO21: M
A22: Hitzel | B22: Dennis | C22: 055/23 | D22: Stadt Offenbach | E22: HL | F22: 4,163 | G22: 27 | H22: 154.19 | I22: 189 | J22: 160 | K22: 173 | L22: 172 | M22: 145 | N22: 152 | O22: 168 | P22: 140 | Q22: 158 | R22: 128 | S22: 141 | T22: 190 | U22: 119 | V22: 144 | W22: 171 | X22: 140 | Y22: 211 | Z22: 145 | AA22: 138 | AB22: 164 | AC22: 150 | AD22: 113 | AE22: 142 | AF22: 158 | AG22: 169 | AH22: 127 | AI22: 156 | DM22: 36 | DO22: M
A23: Burkart | B23: Klaus | C23: 280/80 | D23: Stadt Offenbach | E23: HL | F23: 2,870 | G23: 21 | H23: 136.67 | I23: 154 | J23: 169 | K23: 145 | L23: 120 | M23: 134 | N23: 134 | O23: 125 | P23: 112 | Q23: 195 | R23: 115 | S23: 153 | T23: 146 | U23: 130 | V23: 125 | W23: 128 | X23: 157 | Y23: 116 | Z23: 124 | AA23: 153 | AB23: 108 | AC23: 127 | DM23: 30 | DO23: M
A24: Neumann | B24: Andreas | C24: 421/81 | D24: Stadt Offenbach | E24: HL | F24: 4,337 | G24: 24 | H24: 180.71 | I24: 192 | J24: 180 | K24: 118 | L24: 160 | M24: 215 | N24: 175 | O24: 214 | P24: 221 | Q24: 196 | R24: 127 | S24: 212 | T24: 199 | U24: 216 | V24: 187 | W24: 192 | X24: 144 | Y24: 226 | Z24: 177 | AA24: 209 | AB24: 171 | AC24: 156 | AD24: 125 | AE24: 165 | AF24: 160 | DM24: 33 | DO24: M
A25: Kern | B25: Norbert | C25: 280/93 | D25: Stadt Offenbach | E25: HL | F25: =ROUND(SUM(I25:CU25),0) -> 4,782 | G25: =COUNTA(I25:CU25) -> 27 | H25: =ROUND(AVERAGE(I25:CU25),3) -> 177.11 | I25: 242 | J25: 179 | K25: 156 | L25: 165 | M25: 161 | N25: 155 | O25: 173 | P25: 205 | Q25: 176 | R25: 214 | S25: 158 | T25: 179 | U25: 223 | V25: 131 | W25: 161 | X25: 175 | Y25: 169 | Z25: 193 | AA25: 169 | AB25: 157 | AC25: 155 | AD25: 173 | AE25: 176 | AF25: 193 | AG25: 150 | AH25: 188 | AI25: 206 | DM25: 36 | DO25: M
A26: Nothe | B26: Aleksandra | C26: 078/19 | D26: Stadt Offenbach | E26: HL | F26: 1,732 | G26: 15 | H26: 115.47 | I26: 107 | J26: 134 | K26: 128 | L26: 118 | M26: 109 | N26: 96 | O26: 122 | P26: 109 | Q26: 108 | R26: 115 | S26: 109 | T26: 128 | U26: 102 | V26: 141 | W26: 106 | DM26: 24 | DO26: W
A27: Schließmann | B27: Michael | C27: 061/13 | D27: Wellenmacher 3 | E27: HL | F27: 6,943 | G27: 42 | H27: 165.31 | I27: 158 | J27: 156 | K27: 161 | L27: 183 | M27: 155 | N27: 169 | O27: 189 | P27: 210 | Q27: 194 | R27: 185 | S27: 217 | T27: 144 | U27: 180 | V27: 132 | W27: 137 | X27: 167 | Y27: 191 | Z27: 193 | AA27: 172 | AB27: 145 | AC27: 160 | AD27: 150 | AE27: 163 | AF27: 216 | AG27: 160 | AH27: 204 | AI27: 157 | AJ27: 168 | AK27: 181 | AL27: 132 | AM27: 172 | AN27: 167 | AO27: 133 | AP27: 163 | AQ27: 113 | AR27: 144 | AS27: 133 | AT27: 147 | AU27: 211 | AV27: 156 | AW27: 138 | AX27: 137 | DM27: 51 | DO27: M
A28: Trost | B28: Monika | C28: 124/92 | D28: Wellenmacher 3 | E28: HL | F28: 4,134 | G28: 27 | H28: 153.11 | I28: 155 | J28: 133 | K28: 119 | L28: 153 | M28: 157 | N28: 150 | O28: 152 | P28: 163 | Q28: 183 | R28: 149 | S28: 164 | T28: 159 | U28: 156 | V28: 192 | W28: 165 | X28: 157 | Y28: 133 | Z28: 151 | AA28: 159 | AB28: 147 | AC28: 160 | AD28: 122 | AE28: 179 | AF28: 166 | AG28: 145 | AH28: 126 | AI28: 139 | DM28: 36 | DO28: W
A29: Müller | B29: Norbert | C29: 025/20 | D29: Wellenmacher 3 | E29: HL | F29: 11,263 | G29: 68 | H29: 165.63 | I29: 123 | J29: 146 | K29: 149 | L29: 138 | M29: 225 | N29: 161 | O29: 179 | P29: 156 | Q29: 199 | R29: 146 | S29: 169 | T29: 160 | U29: 153 | V29: 126 | W29: 170 | X29: 149 | Y29: 158 | Z29: 155 | AA29: 182 | AB29: 149 | AC29: 169 | AD29: 173 | AE29: 213 | AF29: 194 | AG29: 209 | AH29: 156 | AI29: 166 | AJ29: 210 | AK29: 183 | AL29: 158 | AM29: 198 | AN29: 179 | AO29: 168 | AP29: 150 | AQ29: 171 | AR29: 144 | AS29: 149 | AT29: 173 | AU29: 168 | AV29: 136 | AW29: 135 | AX29: 158 | AY29: 152 | AZ29: 170 | BA29: 137 | BB29: 167 | BC29: 138 | BD29: 157 | BE29: 208 | BF29: 212 | BG29: 157 | BH29: 131 | BI29: 170 | BJ29: 153 | BK29: 166 | BL29: 166 | BM29: 169 | BN29: 192 | BO29: 106 | BP29: 169 | BQ29: 178 | BR29: 208 | BS29: 204 | BT29: 142 | BU29: 182 | BV29: 122 | BW29: 142 | BX29: 212 | DM29: 77 | DO29: M
A30: Sabo | B30: Ivan | C30: 360/83 | D30: Wellenmacher 3 | E30: HL | F30: 14,537 | G30: 80 | H30: 181.71 | I30: 210 | J30: 154 | K30: 170 | L30: 186 | M30: 222 | N30: 227 | O30: 179 | P30: 211 | Q30: 170 | R30: 177 | S30: 155 | T30: 209 | U30: 154 | V30: 223 | W30: 180 | X30: 174 | Y30: 164 | Z30: 180 | AA30: 192 | AB30: 171 | AC30: 204 | AD30: 167 | AE30: 192 | AF30: 192 | AG30: 183 | AH30: 136 | AI30: 158 | AJ30: 166 | AK30: 155 | AL30: 188 | AM30: 167 | AN30: 215 | AO30: 159 | AP30: 158 | AQ30: 189 | AR30: 182 | AS30: 171 | AT30: 152 | AU30: 156 | AV30: 177 | AW30: 225 | AX30: 214 | AY30: 158 | AZ30: 158 | BA30: 204 | BB30: 168 | BC30: 176 | BD30: 190 | BE30: 190 | BF30: 211 | BG30: 150 | BH30: 171 | BI30: 185 | BJ30: 164 | BK30: 176 | BL30: 202 | BM30: 140 | BN30: 210 | BO30: 240 | BP30: 238 | BQ30: 201 | BR30: 192 | BS30: 178 | BT30: 179 | BU30: 174 | BV30: 159 | BW30: 189 | BX30: 191 | BY30: 201 | BZ30: 160 | CA30: 222 | CB30: 168 | CC30: 189 | CD30: 177 | CE30: 155 | CF30: 191 | CG30: 211 | CH30: 154 | CI30: 145 | CJ30: 156 | DM30: 89 | DO30: M
A31: Viel | B31: Christine | C31: 190/98 | D31: Wellenmacher 3 | E31: HL | F31: =ROUND(SUM(I31:CU31),0) -> 6,311 | G31: =COUNTA(I31:CU31) -> 39 | H31: =ROUND(AVERAGE(I31:CU31),3) -> 161.82 | I31: 155 | J31: 150 | K31: 122 | L31: 151 | M31: 193 | N31: 160 | O31: 185 | P31: 177 | Q31: 153 | R31: 149 | S31: 136 | T31: 144 | U31: 173 | V31: 155 | W31: 160 | X31: 142 | Y31: 145 | Z31: 172 | AA31: 200 | AB31: 184 | AC31: 146 | AD31: 148 | AE31: 184 | AF31: 180 | AG31: 150 | AH31: 133 | AI31: 155 | AJ31: 171 | AK31: 180 | AL31: 143 | AM31: 149 | AN31: 170 | AO31: 148 | AP31: 140 | AQ31: 167 | AR31: 185 | AS31: 179 | AT31: 179 | AU31: 198 | DM31: 48 | DO31: W
A32: Winter | B32: Asko | C32: 011/23 | D32: MM Bau 2 | E32: HL | F32: 8,325 | G32: 45 | H32: 185.00 | I32: 200 | J32: 148 | K32: 167 | L32: 185 | M32: 178 | N32: 191 | O32: 169 | P32: 209 | Q32: 197 | R32: 169 | S32: 152 | T32: 138 | U32: 195 | V32: 183 | W32: 226 | X32: 178 | Y32: 188 | Z32: 167 | AA32: 191 | AB32: 212 | AC32: 210 | AD32: 221 | AE32: 193 | AF32: 148 | AG32: 174 | AH32: 185 | AI32: 160 | AJ32: 214 | AK32: 155 | AL32: 191 | AM32: 209 | AN32: 211 | AO32: 150 | AP32: 168 | AQ32: 216 | AR32: 235 | AS32: 207 | AT32: 203 | AU32: 154 | AV32: 189 | AW32: 174 | AX32: 183 | AY32: 153 | AZ32: 190 | BA32: 189 | DM32: 54 | DO32: M
A33: Rahner | B33: Viktor | C33: 107/17 | D33: MM Bau 2 | E33: HL | F33: 4,920 | G33: 30 | H33: 164.00 | I33: 158 | J33: 222 | K33: 143 | L33: 234 | M33: 161 | N33: 151 | O33: 126 | P33: 153 | Q33: 153 | R33: 147 | S33: 181 | T33: 174 | U33: 177 | V33: 144 | W33: 139 | X33: 164 | Y33: 158 | Z33: 167 | AA33: 162 | AB33: 182 | AC33: 124 | AD33: 235 | AE33: 169 | AF33: 136 | AG33: 156 | AH33: 177 | AI33: 184 | AJ33: 144 | AK33: 129 | AL33: 170 | DM33: 39 | DO33: M
A34: Capizzi | B34: Nunzio | C34: 242/93 | D34: MM Bau 2 | E34: HL | F34: 5,044 | G34: 34 | H34: 148.35 | I34: 126 | J34: 146 | K34: 143 | L34: 114 | M34: 137 | N34: 162 | O34: 148 | P34: 144 | Q34: 164 | R34: 169 | S34: 148 | T34: 148 | U34: 144 | V34: 152 | W34: 138 | X34: 149 | Y34: 134 | Z34: 135 | AA34: 125 | AB34: 148 | AC34: 166 | AD34: 145 | AE34: 171 | AF34: 124 | AG34: 130 | AH34: 173 | AI34: 144 | AJ34: 153 | AK34: 132 | AL34: 175 | AM34: 189 | AN34: 162 | AO34: 144 | AP34: 162 | DM34: 43 | DO34: M
A35: Mader | B35: Gaby | C35: 121/12 | D35: MM Bau 2 | E35: HL | F35: 9,252 | G35: 59 | H35: 156.81 | I35: 124 | J35: 130 | K35: 110 | L35: 135 | M35: 150 | N35: 143 | O35: 186 | P35: 143 | Q35: 157 | R35: 140 | S35: 150 | T35: 144 | U35: 206 | V35: 176 | W35: 157 | X35: 159 | Y35: 137 | Z35: 178 | AA35: 155 | AB35: 160 | AC35: 150 | AD35: 159 | AE35: 178 | AF35: 179 | AG35: 185 | AH35: 198 | AI35: 140 | AJ35: 156 | AK35: 147 | AL35: 161 | AM35: 138 | AN35: 212 | AO35: 168 | AP35: 151 | AQ35: 152 | AR35: 156 | AS35: 123 | AT35: 203 | AU35: 166 | AV35: 134 | AW35: 181 | AX35: 169 | AY35: 170 | AZ35: 130 | BA35: 147 | BB35: 151 | BC35: 136 | BD35: 160 | BE35: 148 | BF35: 161 | BG35: 157 | BH35: 148 | BI35: 152 | BJ35: 166 | BK35: 134 | BL35: 157 | BM35: 169 | BN35: 163 | BO35: 157 | DM35: 68 | DO35: W
A36: Schubert | B36: Mike | C36: 106/15 | D36: MM Bau 2 | E36: HL | F36: =ROUND(SUM(I36:CU36),0) -> 6,323 | G36: =COUNTA(I36:CU36) -> 39 | H36: =ROUND(AVERAGE(I36:CU36),3) -> 162.13 | I36: 177 | J36: 116 | K36: 178 | L36: 175 | M36: 158 | N36: 203 | O36: 193 | P36: 184 | Q36: 193 | R36: 235 | S36: 201 | T36: 192 | U36: 163 | V36: 160 | W36: 140 | X36: 145 | Y36: 147 | Z36: 180 | AA36: 159 | AB36: 154 | AC36: 186 | AD36: 174 | AE36: 158 | AF36: 158 | AG36: 133 | AH36: 149 | AI36: 199 | AJ36: 157 | AK36: 178 | AL36: 21 | AN36: 146 | AO36: 182 | AP36: 141 | AQ36: 168 | AR36: 154 | AS36: 190 | AT36: 143 | AU36: 134 | AV36: 99 | DM36: 48 | DO36: M
A37: Hamann | B37: Andreas | C37: 111/11 | D37: Lufthansa AirPlus | E37: HL | F37: 4,465 | G37: 30 | H37: 148.83 | I37: 118 | J37: 169 | K37: 157 | L37: 139 | M37: 115 | N37: 150 | O37: 116 | P37: 149 | Q37: 137 | R37: 117 | S37: 150 | T37: 116 | U37: 159 | V37: 164 | W37: 166 | X37: 164 | Y37: 142 | Z37: 165 | AA37: 190 | AB37: 142 | AC37: 146 | AD37: 172 | AE37: 131 | AF37: 156 | AG37: 134 | AH37: 170 | AI37: 167 | AJ37: 151 | AK37: 134 | AL37: 179 | DM37: 39 | DO37: M
A38: Rülker | B38: Jana | C38: 165/08 | D38: Lufthansa AirPlus | E38: HL | F38: 4,068 | G38: 30 | H38: 135.60 | I38: 129 | J38: 143 | K38: 137 | L38: 126 | M38: 169 | N38: 112 | O38: 135 | P38: 97 | Q38: 148 | R38: 141 | S38: 136 | T38: 133 | U38: 143 | V38: 101 | W38: 148 | X38: 179 | Y38: 111 | Z38: 115 | AA38: 106 | AB38: 143 | AC38: 122 | AD38: 176 | AE38: 198 | AF38: 151 | AG38: 115 | AH38: 132 | AI38: 155 | AJ38: 123 | AK38: 126 | AL38: 118 | DM38: 39 | DO38: W
A39: Rzepka | B39: Dominik | C39: 072/23 | D39: Lufthansa AirPlus | E39: HL | F39: 3,009 | G39: 24 | H39: 125.38 | I39: 120 | J39: 112 | K39: 95 | L39: 165 | M39: 128 | N39: 125 | O39: 84 | P39: 143 | Q39: 133 | R39: 109 | S39: 113 | T39: 125 | U39: 154 | V39: 121 | W39: 136 | X39: 124 | Y39: 122 | Z39: 145 | AA39: 125 | AB39: 109 | AC39: 115 | AD39: 124 | AE39: 146 | AF39: 136 | DM39: 33 | DO39: M
A40: Burghagen | B40: Frank | C40: 127/97 | D40: Lufthansa AirPlus | E40: HL | F40: 9,789 | G40: 57 | H40: 171.74 | I40: 209 | J40: 209 | K40: 147 | L40: 163 | M40: 155 | N40: 162 | O40: 174 | P40: 170 | Q40: 149 | R40: 156 | S40: 176 | T40: 185 | U40: 215 | V40: 184 | W40: 183 | X40: 180 | Y40: 180 | Z40: 236 | AA40: 156 | AB40: 178 | AC40: 119 | AD40: 170 | AE40: 175 | AF40: 181 | AG40: 188 | AH40: 209 | AI40: 161 | AJ40: 190 | AK40: 160 | AL40: 147 | AM40: 159 | AN40: 191 | AO40: 180 | AP40: 183 | AQ40: 189 | AR40: 170 | AS40: 191 | AT40: 160 | AU40: 157 | AV40: 185 | AW40: 125 | AX40: 173 | AY40: 132 | AZ40: 137 | BA40: 215 | BB40: 157 | BC40: 192 | BD40: 160 | BE40: 161 | BF40: 169 | BG40: 153 | BH40: 180 | BI40: 160 | BJ40: 182 | BK40: 192 | BL40: 110 | BM40: 159 | DM40: 66 | DO40: M
A41: Meyer | B41: Carsten | C41: 174/09 | D41: Lufthansa AirPlus | E41: HL | F41: 5,925 | G41: 42 | H41: 141.07 | I41: 113 | J41: 151 | K41: 159 | L41: 177 | M41: 118 | N41: 115 | O41: 121 | P41: 158 | Q41: 138 | R41: 130 | S41: 166 | T41: 168 | U41: 137 | V41: 128 | W41: 147 | X41: 158 | Y41: 142 | Z41: 139 | AA41: 167 | AB41: 145 | AC41: 149 | AD41: 148 | AE41: 160 | AF41: 202 | AG41: 122 | AH41: 112 | AI41: 152 | AJ41: 191 | AK41: 154 | AL41: 160 | AM41: 107 | AN41: 139 | AO41: 129 | AP41: 111 | AQ41: 125 | AR41: 138 | AS41: 122 | AT41: 134 | AU41: 116 | AV41: 115 | AW41: 126 | AX41: 136 | DM41: 51 | DO41: M
A42: Baro | B42: Dirk | C42: 059/13 | D42: Wellenmacher 2 | E42: Hl | F42: =ROUND(SUM(I42:CU42),0) -> 10,469 | G42: =COUNTA(I42:CU42) -> 62 | H42: =ROUND(AVERAGE(I42:CU42),3) -> 168.86 | I42: 195 | J42: 150 | K42: 141 | L42: 194 | M42: 165 | N42: 153 | O42: 164 | P42: 140 | Q42: 222 | R42: 164 | S42: 193 | T42: 156 | U42: 147 | V42: 130 | W42: 160 | X42: 174 | Y42: 153 | Z42: 197 | AA42: 163 | AB42: 171 | AC42: 165 | AD42: 151 | AE42: 161 | AF42: 151 | AG42: 178 | AH42: 216 | AI42: 195 | AJ42: 177 | AK42: 194 | AL42: 237 | AM42: 147 | AN42: 178 | AO42: 212 | AP42: 176 | AQ42: 152 | AR42: 158 | AS42: 147 | AT42: 163 | AU42: 182 | AV42: 177 | AW42: 169 | AX42: 164 | AY42: 159 | AZ42: 143 | BA42: 156 | BB42: 174 | BC42: 177 | BD42: 150 | BE42: 143 | BF42: 192 | BG42: 172 | BH42: 148 | BI42: 179 | BJ42: 175 | BK42: 146 | BL42: 172 | BM42: 170 | BN42: 182 | BO42: 161 | BP42: 172 | BQ42: 134 | BR42: 182 | DM42: 71 | DO42: M
A43: Schmidt | B43: Markus | C43: 105/23 | D43: Gassenhauer | E43: Hl | F43: 5,358 | G43: 30 | H43: 178.60 | I43: 179 | J43: 183 | K43: 159 | L43: 188 | M43: 202 | N43: 160 | O43: 181 | P43: 208 | Q43: 176 | R43: 185 | S43: 215 | T43: 173 | U43: 181 | V43: 215 | W43: 197 | X43: 175 | Y43: 166 | Z43: 178 | AA43: 202 | AB43: 142 | AC43: 145 | AD43: 150 | AE43: 143 | AF43: 182 | AG43: 167 | AH43: 213 | AI43: 139 | AJ43: 197 | AK43: 192 | AL43: 165 | DM43: 39 | DO43: M
A44: Kehr | B44: Marco | C44: 093/23 | D44: Wellenmacher 1 | E44: HL | F44: 4,049 | G44: 21 | H44: 192.81 | I44: 222 | J44: 197 | K44: 152 | L44: 203 | M44: 203 | N44: 162 | O44: 162 | P44: 165 | Q44: 197 | R44: 279 | S44: 213 | T44: 154 | U44: 206 | V44: 218 | W44: 191 | X44: 208 | Y44: 278 | Z44: 168 | AA44: 158 | AB44: 143 | AC44: 170 | DM44: 30 | DO44: M
A45: Keller | B45: Claudia | C45: 162/04 | D45: Wellenmacher 1 | E45: HL | F45: 7,974 | G45: 51 | H45: 156.35 | I45: 187 | J45: 127 | K45: 121 | L45: 160 | M45: 121 | N45: 180 | O45: 132 | P45: 225 | Q45: 166 | R45: 135 | S45: 169 | T45: 171 | U45: 147 | V45: 179 | W45: 136 | X45: 167 | Y45: 110 | Z45: 176 | AA45: 132 | AB45: 149 | AC45: 132 | AD45: 196 | AE45: 148 | AF45: 171 | AG45: 206 | AH45: 186 | AI45: 159 | AJ45: 150 | AK45: 177 | AL45: 192 | AM45: 187 | AN45: 181 | AO45: 169 | AP45: 180 | AQ45: 160 | AR45: 169 | AS45: 124 | AT45: 135 | AU45: 159 | AV45: 147 | AW45: 191 | AX45: 151 | AY45: 117 | AZ45: 154 | BA45: 144 | BB45: 170 | BC45: 135 | BD45: 113 | BE45: 132 | BF45: 130 | BG45: 119 | DM45: 60 | DO45: W
A46: Keller | B46: Andreas | C46: 169/01 | D46: Wellenmacher 1 | E46: HL | F46: =ROUND(SUM(I46:CU46),0) -> 4,983 | G46: =COUNTA(I46:CU46) -> 36 | H46: =ROUND(AVERAGE(I46:CU46),3) -> 138.42 | I46: 137 | J46: 158 | K46: 136 | L46: 111 | M46: 131 | N46: 137 | O46: 132 | P46: 126 | Q46: 137 | R46: 162 | S46: 120 | T46: 144 | U46: 123 | V46: 138 | W46: 117 | X46: 116 | Y46: 134 | Z46: 155 | AA46: 153 | AB46: 127 | AC46: 152 | AD46: 187 | AE46: 160 | AF46: 154 | AG46: 117 | AH46: 109 | AI46: 120 | AJ46: 129 | AK46: 133 | AL46: 115 | AM46: 141 | AN46: 153 | AO46: 170 | AP46: 173 | AQ46: 134 | AR46: 142 | DM46: 45 | DO46: M
A47: Sperling | B47: Alfred | C47: 171/01 | D47: Wellenmacher 2 | E47: HL | F47: =ROUND(SUM(I47:CU47),0) -> 10,955 | G47: =COUNTA(I47:CU47) -> 64 | H47: =ROUND(AVERAGE(I47:CU47),3) -> 171.17 | I47: 155 | J47: 151 | K47: 157 | L47: 162 | M47: 176 | N47: 158 | O47: 149 | P47: 158 | Q47: 200 | R47: 140 | S47: 244 | T47: 164 | U47: 194 | V47: 150 | W47: 193 | X47: 216 | Y47: 126 | Z47: 165 | AA47: 161 | AB47: 171 | AC47: 181 | AD47: 203 | AE47: 160 | AF47: 147 | AG47: 146 | AH47: 188 | AI47: 170 | AJ47: 224 | AK47: 156 | AL47: 198 | AM47: 117 | AN47: 189 | AO47: 170 | AP47: 198 | AQ47: 254 | AR47: 189 | AS47: 210 | AT47: 183 | AU47: 169 | AV47: 150 | AW47: 172 | AX47: 183 | AY47: 154 | AZ47: 168 | BA47: 202 | BB47: 190 | BC47: 139 | BD47: 136 | BE47: 151 | BF47: 196 | BG47: 160 | BH47: 187 | BI47: 175 | BJ47: 170 | BK47: 185 | BL47: 180 | BM47: 194 | BN47: 183 | BO47: 144 | BP47: 142 | BQ47: 143 | BR47: 143 | BS47: 124 | BT47: 142 | DM47: 73 | DO47: M
A48: Malow | B48: Christine | C48: 125/12 | D48: MM Bau 2 | E48: HL | F48: =ROUND(SUM(I48:CU48),0) -> 6,303 | G48: =COUNTA(I48:CU48) -> 32 | H48: 196.97 | I48: 200 | J48: 215 | K48: 217 | L48: 203 | M48: 182 | N48: 204 | O48: 226 | P48: 195 | Q48: 147 | R48: 170 | S48: 257 | T48: 199 | U48: 168 | V48: 203 | W48: 202 | X48: 156 | Y48: 199 | Z48: 232 | AA48: 190 | AB48: 252 | AC48: 184 | AD48: 203 | AE48: 195 | AF48: 178 | AG48: 196 | AH48: 182 | AI48: 242 | AJ48: 152 | AK48: 189 | AL48: 213 | AM48: 202 | AN48: 150 | DM48: 41 | DO48: W
A49: Hoffmann | B49: René | C49: 075/13 | D49: Stadt Offenbach | E49: HL | F49: 1,551 | G49: 12 | H49: 129.25 | I49: 112 | J49: 136 | K49: 120 | L49: 118 | M49: 161 | N49: 115 | O49: 128 | P49: 111 | Q49: 125 | R49: 150 | S49: 128 | T49: 147 | DM49: 21 | DO49: M
A50: Hoffmann | B50: Sabrina | C50: 122/15 | D50: Stadt Offenbach | E50: HL | F50: 1,297 | G50: 12 | H50: 108.08 | I50: 94 | J50: 100 | K50: 119 | L50: 112 | M50: 139 | N50: 90 | O50: 112 | P50: 131 | Q50: 104 | R50: 91 | S50: 98 | T50: 107 | DM50: 21 | DO50: W
A51: Schaack | B51: Madelaine | C51: 066/18 | D51: Stadt Offenbach | E51: HL | F51: 1,532 | G51: 15 | H51: 102.13 | I51: 81 | J51: 92 | K51: 108 | L51: 92 | M51: 111 | N51: 108 | O51: 80 | P51: 120 | Q51: 107 | R51: 127 | S51: 78 | T51: 98 | U51: 100 | V51: 107 | W51: 123 | DM51: 24 | DO51: W
A52: Bönsch | B52: Siegfried | C52: 082/08 | D52: Stadt Offenbach | E52: HL | F52: =ROUND(SUM(I52:CU52),0) -> 725 | G52: =COUNTA(I52:CU52) -> 6 | H52: =ROUND(AVERAGE(I52:CU52),3) -> 120.83 | I52: 122 | J52: 122 | K52: 122 | L52: 129 | M52: 114 | N52: 116 | DM52: 15 | DO52: M
A53: Gebauer | B53: Christian | C53: 130/15 | D53: Lufthansa AirPlus | E53: HL | F53: =ROUND(SUM(I53:CU53),0) -> 372 | G53: =COUNTA(I53:CU53) -> 3 | H53: =ROUND(AVERAGE(I53:CU53),3) -> 124.00 | I53: 141 | J53: 107 | K53: 124 | DM53: 12 | DO53: M
A54: Mader | B54: Sven | C54: 082/19 | D54: MM Bau 1 | E54: HL | F54: 2,546 | G54: 12 | H54: 212.17 | I54: 179 | J54: 222 | K54: 241 | L54: 201 | M54: 191 | N54: 246 | O54: 189 | P54: 246 | Q54: 204 | R54: 234 | S54: 219 | T54: 174 | DM54: 21 | DO54: M
A55: Pisciaroli | B55: Sven | C55: 019/12 | D55: Wellenmacher 3 | E55: HL | F55: =ROUND(SUM(I55:CU55),0) -> 1,535 | G55: =COUNTA(I55:CU55) -> 9 | H55: =ROUND(AVERAGE(I55:CU55),3) -> 170.56 | I55: 179 | J55: 162 | K55: 210 | L55: 172 | M55: 170 | N55: 171 | O55: 147 | P55: 143 | Q55: 181 | DM55: 18 | DO55: M

Sheet Rang
A1: Rang neu | B1: Rang alt | C1: Name | D1: Vorname | E1: Pass-Nr | F1: Saison 2023/2024 Team | G1: Klasse | H1: Pins ges. | I1: Spiele | J1: Schnitt | K1: Filtername | L1: G
A3: 1 | B3: 1 | C3: Mader | D3: Sven | E3: 082/19 | F3: MM Bau 1 | G3: HL | H3: 2546 | I3: 12 | J3: 212.17 | K3: =C3&","&D3 -> Mader, Sven | L3: M
A4: 2 | B4: 3 | C4: Gehrmann | D4: René | E4: 063/14 | F4: Wellenmacher 1 | G4: HL | H4: 12386 | I4: 62 | J4: 199.77 | K4: =C4&","&D4 -> Gehrmann, René | L4: M
A5: 3 | B5: 2 | C5: Malow | D5: Christine | E5: 125/12 | F5: MM Bau 2 | G5: HL | H5: 6303 | I5: 32 | J5: 196.97 | K5: =C5&","&D5 -> Malow, Christine | L5: W
A6: 4 | B6: 4 | C6: Malow | D6: Marco | E6: 101/15 | F6: MM Bau 1 | G6: HL | H6: 16311 | I6: 83 | J6: 196.52 | K6: =C6&","&D6 -> Malow, Marco | L6: M
A7: 5 | B7: 6 | C7: Scharnowski | D7: Waldemar | E7: 127/94 | F7: Wellenmacher 1 | G7: HL | H7: 8812 | I7: 45 | J7: 195.82 | K7: =C7&","&D7 -> Scharnowski, Waldemar | L7: M
A8: 6 | B8: 5 | C8: Kehr | D8: Marco | E8: 093/23 | F8: Wellenmacher 1 | G8: HL | H8: 4049 | I8: 21 | J8: 192.81 | K8: =C8&","&D8 -> Kehr, Marco | L8: M
A9: 7 | B9: 7 | C9: Haase | D9: Reiner | E9: 104/15 | F9: MM Bau 1 | G9: HL | H9: 10277 | I9: 54 | J9: 190.32 | K9: =C9&","&D9 -> Haase, Reiner | L9: M
A10: 8 | B10: 8 | C10: Harzer | D10: Christopher | E10: 030/16 | F10: Gassenhauer | G10: HL | H10: 10064 | I10: 54 | J10: 186.37 | K10: =C10&","&D10 -> Harzer, Christopher | L10: M
A11: 9 | B11: 11 | C11: Kiefer | D11: Michael | E11: 029/08 | F11: Gassenhauer | G11: HL | H11: 15369 | I11: 83 | J11: 185.17 | K11: =C11&","&D11 -> Kiefer, Michael | L11: M
A12: 10 | B12: 10 | C12: Winter | D12: Asko | E12: 011/23 | F12: MM Bau 2 | G12: HL | H12: 8325 | I12: 45 | J12: 185.00 | K12: =C12&","&D12 -> Winter, Asko | L12: M
A13: 11 | B13: 12 | C13: Sabo | D13: Ivan | E13: 360/83 | F13: Wellenmacher 3 | G13: HL | H13: 14537 | I13: 80 | J13: 181.71 | K13: =C13&","&D13 -> Sabo, Ivan | L13: M
A14: 12 | B14: 9 | C14: Neumann | D14: Andreas | E14: 421/81 | F14: Stadt Offenbach | G14: HL | H14: 4337 | I14: 24 | J14: 180.71 | K14: =C14&","&D14 -> Neumann, Andreas | L14: M
A15: 13 | B15: 14 | C15: Schmidt | D15: Markus | E15: 105/23 | F15: Gassenhauer | G15: Hl | H15: 5358 | I15: 30 | J15: 178.60 | K15: =C15&","&D15 -> Schmidt, Markus | L15: M
A16: 14 | B16: 13 | C16: Kornett | D16: Kerstin | E16: 106/16 | F16: Wellenmacher 2 | G16: HL | H16: 13209 | I16: 74 | J16: 178.50 | K16: =C16&","&D16 -> Kornett, Kerstin | L16: W
A17: 15 | B17: 17 | C17: Kern | D17: Norbert | E17: 280/93 | F17: Stadt Offenbach | G17: HL | H17: 4782 | I17: 27 | J17: 177.11 | K17: =C17&","&D17 -> Kern, Norbert | L17: M
A18: 16 | B18: 16 | C18: Vorwerg | D18: Michael | E18: 083/14 | F18: Gassenhauer | G18: HL | H18: 10551 | I18: 60 | J18: 175.85 | K18: =C18&","&D18 -> Vorwerg, Michael | L18: M
A19: 17 | B19: 18 | C19: Lella | D19: Michele | E19: 059/14 | F19: Gassenhauer | G19: HL | H19: 6273 | I19: 36 | J19: 174.25 | K19: =C19&","&D19 -> Lella, Michele | L19: M
A20: 18 | B20: 15 | C20: Prasch | D20: Daniel | E20: 069/18 | F20: Wellenmacher 2 | G20: HL | H20: 5740 | I20: 33 | J20: 173.94 | K20: =C20&","&D20 -> Prasch, Daniel | L20: M
A21: 19 | B21: 20 | C21: Burghagen | D21: Frank | E21: 127/97 | F21: Lufthansa AirPlus | G21: HL | H21: 9789 | I21: 57 | J21: 171.74 | K21: =C21&","&D21 -> Burghagen, Frank | L21: M
A22: 20 | B22: 19 | C22: Sperling | D22: Alfred | E22: 171/01 | F22: Wellenmacher 2 | G22: HL | H22: 10955 | I22: 64 | J22: 171.17 | K22: =C22&","&D22 -> Sperling,Alfred | L22: M
A23: 21 | B23: 22 | C23: Pisciaroli | D23: Sven | E23: 019/12 | F23: Wellenmacher 3 | G23: HL | H23: 1535 | I23: 9 | J23: 170.56 | K23: =C23&","&D23 -> Pisciaroli, Sven | L23: M
A24: 22 | B24: 21 | C24: Vogel | D24: Bernd | E24: 122/12 | F24: MM Bau 1 | G24: HL | H24: 7659 | I24: 45 | J24: 170.20 | K24: =C24&","&D24 -> Vogel, Bernd | L24: M
A25: 23 | B25: 23 | C25: Baro | D25: Dirk | E25: 059/13 | F25: Wellenmacher 2 | G25: Hl | H25: 10469 | I25: 62 | J25: 168.86 | K25: =C25&","&D25 -> Baro, Dirk | L25: M
A26: 24 | B26: 24 | C26: Brookes-Kiefer | D26: Elaine | E26: 028/08 | F26: Gassenhauer | G26: HL | H26: 10951 | I26: 65 | J26: 168.48 | K26: =C26&","&D26 -> Brookes-Kiefer, Elaine | L26: W
A27: 25 | B27: 25 | C27: Koths | D27: Katrin | E27: 105/16 | F27: Wellenmacher 1 | G27: HL | H27: 7855 | I27: 47 | J27: 167.13 | K27: =C27&","&D27 -> Koths, Katrin | L27: W
A28: 26 | B28: 27 | C28: Müller | D28: Norbert | E28: 025/20 | F28: Wellenmacher 3 | G28: HL | H28: 11263 | I28: 68 | J28: 165.63 | K28: =C28&","&D28 -> Müller, Norbert | L28: M
A29: 27 | B29: 26 | C29: Schließmann | D29: Michael | E29: 061/13 | F29: Wellenmacher 3 | G29: HL | H29: 6943 | I29: 42 | J29: 165.31 | K29: =C29&","&D29 -> Schließmann, Michael | L29: M
A30: 28 | B30: 28 | C30: Rahner | D30: Viktor | E30: 107/17 | F30: MM Bau 2 | G30: HL | H30: 4920 | I30: 30 | J30: 164.00 | K30: =C30&","&D30 -> Rahner, Viktor | L30: M
A31: 29 | B31: 30 | C31: Kraus | D31: Reiner | E31: 070/18 | F31: Wellenmacher 2 | G31: HL | H31: 5889 | I31: 36 | J31: 163.58 | K31: =C31&","&D31 -> Kraus, Reiner | L31: M
A32: 30 | B32: 29 | C32: Schubert | D32: Mike | E32: 106/15 | F32: MM Bau 2 | G32: HL | H32: 6323 | I32: 39 | J32: 162.13 | K32: =C32&","&D32 -> Schubert, Mike | L32: M
A33: 31 | B33: 31 | C33: Viel | D33: Christine | E33: 190/98 | F33: Wellenmacher 3 | G33: HL | H33: 6311 | I33: 39 | J33: 161.82 | K33: =C33&","&D33 -> Viel, Christine | L33: W
A34: 32 | B34: 32 | C34: Brückner | D34: Sylvia | E34: 102/23 | F34: MM Bau 1 | G34: HL | H34: 5805 | I34: 36 | J34: 161.25 | K34: =C34&","&D34 -> Brückner, Sylvia | L34: W
A35: 33 | B35: 33 | C35: Fabian | D35: Ingo | E35: 064/14 | F35: Wellenmacher 1 | G35: HL | H35: 1925 | I35: 12 | J35: 160.42 | K35: =C35&","&D35 -> Fabian, Ingo | L35: M
A36: 34 | B36: 34 | C36: Roth | D36: Horst | E36: 092/17 | F36: Wellenmacher 2 | G36: HL | H36: 7920 | I36: 50 | J36: 158.40 | K36: =C36&","&D36 -> Roth, Horst | L36: M
A37: 35 | B37: 35 | C37: Radke | D37: Willy | E37: 120/17 | F37: Stadt Offenbach | G37: HL | H37: 4748 | I37: 30 | J37: 158.27 | K37: =C37&","&D37 -> Radke, Willy | L37: M
A38: 36 | B38: 37 | C38: Brötz | D38: Heinz | E38: 090/22 | F38: MM Bau 1 | G38: HL | H38: 945 | I38: 6 | J38: 157.50 | K38: =C38&","&D38 -> Brötz, Heinz | L38: M
A39: 37 | B39: 38 | C39: Mader | D39: Gaby | E39: 121/12 | F39: MM Bau 2 | G39: HL | H39: 9252 | I39: 59 | J39: 156.81 | K39: =C39&","&D39 -> Mader, Gaby | L39: W
A40: 38 | B40: 36 | C40: Keller | D40: Claudia | E40: 162/04 | F40: Wellenmacher 1 | G40: HL | H40: 7974 | I40: 51 | J40: 156.35 | K40: =C40&","&D40 -> Keller, Claudia | L40: W
A41: 39 | B41: 39 | C41: Hitzel | D41: Dennis | E41: 055/23 | F41: Stadt Offenbach | G41: HL | H41: 4163 | I41: 27 | J41: 154.19 | K41: =C41&","&D41 -> Hitzel, Dennis | L41: M
A42: 40 | B42: 40 | C42: Trost | D42: Monika | E42: 124/92 | F42: Wellenmacher 3 | G42: HL | H42: 4134 | I42: 27 | J42: 153.11 | K42: =C42&","&D42 -> Trost, Monika | L42: W
A43: 41 | B43: 41 | C43: Hamann | D43: Andreas | E43: 111/11 | F43: Lufthansa AirPlus | G43: HL | H43: 4465 | I43: 30 | J43: 148.83 | K43: =C43&","&D43 -> Hamann, Andreas | L43: M
A44: 42 | B44: 42 | C44: Capizzi | D44: Nunzio | E44: 242/93 | F44: MM Bau 2 | G44: HL | H44: 5044 | I44: 34 | J44: 148.35 | K44: =C44&","&D44 -> Capizzi, Nunzio | L44: M
A45: 43 | B45: 43 | C45: Lipke | D45: Roswitha | E45: 118/11 | F45: Wellenmacher 2 | G45: HL | H45: 6482 | I45: 44 | J45: 147.32 | K45: =C45&","&D45 -> Lipke, Roswitha | L45: W
A46: 44 | B46: 44 | C46: Meyer | D46: Carsten | E46: 174/09 | F46: Lufthansa AirPlus | G46: HL | H46: 5925 | I46: 42 | J46: 141.07 | K46: =C46&","&D46 -> Meyer, Carsten | L46: M
A47: 45 | B47: 45 | C47: Keller | D47: Andreas | E47: 169/01 | F47: Wellenmacher 1 | G47: HL | H47: 4983 | I47: 36 | J47: 138.42 | K47: =C47&","&D47 -> Keller, Andreas | L47: M
A48: 46 | B48: 46 | C48: Burkart | D48: Klaus | E48: 280/80 | F48: Stadt Offenbach | G48: HL | H48: 2870 | I48: 21 | J48: 136.67 | K48: =C48&","&D48 -> Burkart, Klaus | L48: M
A49: 47 | B49: 47 | C49: Rülker | D49: Jana | E49: 165/08 | F49: Lufthansa AirPlus | G49: HL | H49: 4068 | I49: 30 | J49: 135.60 | K49: =C49&","&D49 -> Rülker, Jana | L49: W
A50: 48 | B50: 48 | C50: Hoffmann | D50: René | E50: 075/13 | F50: Stadt Offenbach | G50: HL | H50: 1551 | I50: 12 | J50: 129.25 | K50: =C50&","&D50 -> Hoffmann, René | L50: M
A51: 49 | B51: 49 | C51: Rzepka | D51: Dominik | E51: 072/23 | F51: Lufthansa AirPlus | G51: HL | H51: 3009 | I51: 24 | J51: 125.38 | K51: =C51&","&D51 -> Rzepka, Dominik | L51: M
A52: 50 | B52: 50 | C52: Gebauer | D52: Christian | E52: 130/15 | F52: Lufthansa AirPlus | G52: HL | H52: 372 | I52: 3 | J52: 124.00 | K52: =C52&","&D52 -> Gebauer, Christian | L52: M
A53: 51 | B53: 51 | C53: Bönsch | D53: Siegfried | E53: 082/08 | F53: Stadt Offenbach | G53: HL | H53: 725 | I53: 6 | J53: 120.83 | K53: =C53&","&D53 -> Bönsch, Siegfried | L53: M
A54: 52 | B54: 52 | C54: Nothe | D54: Aleksandra | E54: 078/19 | F54: Stadt Offenbach | G54: HL | H54: 1732 | I54: 15 | J54: 115.47 | K54: =C54&","&D54 -> Nothe, Aleksandra | L54: W
A55: 53 | B55: 53 | C55: Hoffmann | D55: Sabrina | E55: 122/15 | F55: Stadt Offenbach | G55: HL | H55: 1297 | I55: 12 | J55: 108.08 | K55: =C55&","&D55 -> Hoffmann, Sabrina | L55: W
A56: 54 | B56: 54 | C56: Schaack | D56: Madelaine | E56: 066/18 | F56: Stadt Offenbach | G56: HL | H56: 1532 | I56: 15 | J56: 102.13 | K56: =C56&","&D56 -> Schaack, Madelaine | L56: W
K57: =C57&","&D57 -> , | L57: W
K58: =C58&","&D58 -> , | L58: M
K59: , | L59: M
K60: , | L60: M
K61: , | L61: W
K62: , | L62: W
K63: , | L63: W

Sheet Abfragen
H3: Mannschaften | N3: Spielernamen
H6: BSG's | N6: Geschlecht
H9: Klassen
A13: 1 | B13: 2 | C13: Gassenhauer | E13: 2 | F13: HL | G13: 2 | H13: Baro, Dirk | I13: =IF(A13>1,VLOOKUP(A13,B13:C40,2,0),"N") -> N | J13: 2 | K13: M
A14: 1 | B14: 3 | C14: Lufthansa AirPlus | E14: 3 | F14: HL | G14: 3 | H14: Bönsch, Siegfried | I14: =IF(A14>1,VLOOKUP(A14,E13:F17,2,0),"N") -> N | J14: 3 | K14: W
A15: 1 | B15: 4 | C15: MM Bau 1 | E15: 4 | F15: HL | G15: 4 | H15: Brookes-Kiefer, Elaine | I15: =IF(A15>1,VLOOKUP(A15,G13:H200,2,0),"N") -> N
A16: 1 | B16: 5 | C16: MM Bau 2 | E16: 5 | G16: 5 | H16: Brötz, Heinz | I16: =IF(A16>1,VLOOKUP(A16,J13:K14,2,0),"N") -> N
A17: 1 | B17: 6 | C17: Stadt Offenbach | E17: 6 | G17: 6 | H17: Brückner, Sylvia | I17: =IF(A17>1,VLOOKUP(A17,B44:C49,2,0),"N") -> N
B18: 7 | C18: Wellenmacher 1 | G18: 7 | H18: Burghagen, Frank
B19: 8 | C19: Wellenmacher 2 | G19: 8 | H19: Burkart, Klaus
B20: 9 | C20: Wellenmacher 3 | G20: 9 | H20: Capizzi, Nunzio
B21: 10 | G21: 10 | H21: Fabian, Ingo
B22: 11 | G22: 11 | H22: Gebauer, Christian
B23: 12 | G23: 12 | H23: Gehrmann, René
B24: 13 | G24: 13 | H24: Haase, Reiner
B25: 14 | G25: 14 | H25: Hamann, Andreas
B26: 15 | G26: 15 | H26: Harzer, Christopher
B27: 16 | G27: 16 | H27: Hitzel, Dennis
B28: 17 | G28: 17 | H28: Hoffmann, René
B29: 18 | G29: 18 | H29: Hoffmann, Sabrina
B30: 19 | G30: 19 | H30: Kehr, Marco
B31: 20 | G31: 20 | H31: Keller, Andreas
B32: 21 | G32: 21 | H32: Keller, Claudia
B33: 22 | G33: 22 | H33: Kern, Norbert
B34: 23 | G34: 23 | H34: Kiefer, Michael
B35: 24 | G35: 24 | H35: Kornett, Kerstin
B36: 25 | G36: 25 | H36: Koths, Katrin
B37: 26 | G37: 26 | H37: Kraus, Reiner
B38: 27 | G38: 27 | H38: Lella, Michele
B39: 28 | G39: 28 | H39: Lipke, Roswitha
B40: 29 | G40: 29 | H40: Mader, Gaby
G41: 30 | H41: Mader, Sven
G42: 31 | H42: Malow, Christine
G43: 32 | H43: Malow, Marco
B44: 2 | C44: MM Bau | G44: 33 | H44: Meyer, Carsten
B45: 3 | C45: Wellenmacher | G45: 34 | H45: Müller, Norbert
B46: 4 | G46: 35 | H46: Neumann, Andreas
B47: 5 | G47: 36 | H47: Nothe, Aleksandra
B48: 6 | G48: 37 | H48: Pisciaroli, Sven
B49: 7 | G49: 38 | H49: Prasch, Daniel
G50: 39 | H50: Radke, Willy
G51: 40 | H51: Rahner, Viktor
G52: 41 | H52: Roth, Horst
G53: 42 | H53: Rülker, Jana
G54: 43 | H54: Rzepka, Dominik
G55: 44 | H55: Sabo, Ivan
G56: 45 | H56: Schaack, Madelaine
G57: 46 | H57: Scharnowski, Waldemar
G58: 47 | H58: Schließmann, Michael
G59: 48 | H59: Schmidt, Markus
G60: 49 | H60: Schubert, Mike
G61: 50 | H61: Sperling,Alfred
G62: 51 | H62: Trost, Monika
G63: 52 | H63: Viel, Christine
G64: 53 | H64: Vogel, Bernd
G65: 54 | H65: Vorwerg, Michael
G66: 55 | H66: Winter, Asko
G67: 56
G68: 57
G69: 58
G70: 59
G71: 60
G72: 61
G73: 62
G74: 63
G75: 64
G76: 65
G77: 66
G78: 67
G79: 68
G80: 69
G81: 70
G82: 71
G83: 72
G84: 73
G85: 74
G86: 75
G87: 76
G88: 77
G89: 78
G90: 79
G91: 80
G92: 81
G93: 82
G94: 83
G95: 84
G96: 85
G97: 86
G98: 87
G99: 88
G100: 89
G101: 90
G102: 91
G103: 92
G104: 93
G105: 94
G106: 95
G107: 96
G108: 97
G109: 98
G110: 99
G111: 100
G112: 101
G113: 102
G114: 103
G115: 104
G116: 105
G117: 106
G118: 107
G119: 108
G120: 109
G121: 110
G122: 111
G123: 112
G124: 113
G125: 114
G126: 115
G127: 116
G128: 117
G129: 118
G130: 119
G131: 120
G132: 121
G133: 122
G134: 123
G135: 124
G136: 125
G137: 126
G138: 127
G139: 128
G140: 129
G141: 130
G142: 131
G143: 132
G144: 133
G145: 134
G146: 135
G147: 136
G148: 137
G149: 138
G150: 139
G151: 140
G152: 141
G153: 142
G154: 143
G155: 144
G156: 145
G157: 146
G158: 147
G159: 148
G160: 149
G161: 150
G162: 151
G163: 152
G164: 153
G165: 154
G166: 155
G167: 156
G168: 157
G169: 158
G170: 159
G171: 160
G172: 161
G173: 162
G174: 163
G175: 164
G176: 165
G177: 166
G178: 167
G179: 168
G180: 169
G181: 170
G182: 171
G183: 172
G184: 173
G185: 174
G186: 175
G187: 176
G188: 177
G189: 178
G190: 179
G191: 180
G196: 181
G197: 182
G198: 183
G199: 184
G200: 185
G201: 186
G202: 187
G203: 188
G204: 189
G205: 190
G206: 191
G207: 192
G208: 193
G209: 194
G210: 195
G211: 196
G212: 197
G213: 198
... 11 more rows

Sheet Makros (hidden)
